{"text_format":"1","workbook":"xlsx","n_sheets":2,"sheets":["使用方法","総括表印刷用"],"not_rendered":{"charts":0,"images":0,"macros":1,"external_links":0,"defined_names":1,"comments":0,"pivot_tables":0},"unopened":[],"bounds":{"document_bytes":16777216,"sheet_cells":100000,"rows_first":2000,"rows_last":500,"rows_between":2000,"halvings":0,"cell_chars":16384,"cell_head_chars":4096},"cells_cut":0,"cells_raw":0,"read":"whole","date_system":"1900"}

{"sheet":"使用方法","index":0,"n_rows":2,"n_cols":1,"rows_kept":2,"cut":false,"hidden":false,"merged":[[0,0,0,8],[1,0,10,8]]}
["使用方法について"]
["・給与支払報告書（総括表）について、エクセルに入力して印刷するか、様式を印刷して直接記入してください。\n・様式は法定のサイズに設定してありますので、加工する際はサイズを崩さないようご注意願います。\n・エクセルに入力する際は、左側の給与支払報告書（総括表）に入力すると、右側の控えに自動入力される仕様になっております。\n・市町村へ提出する際は、印刷したものをキリトリ線で切り取った上で、給与支払報告書１部と併せてご提出ください。\n\n"]

{"sheet":"総括表印刷用","index":1,"n_rows":93,"n_cols":143,"rows_kept":93,"cut":false,"hidden":false,"merged":[[75,18,78,52],[75,53,78,57],[42,90,43,102],[42,103,43,104],[42,105,43,117],[42,118,43,119],[79,11,82,17],[42,5,47,16],[48,78,51,89],[42,78,47,89],[52,78,53,123],[44,17,45,20],[46,17,47,20],[46,21,47,48],[46,49,47,50],[62,0,66,70],[48,124,51,130],[48,134,51,136],[48,137,51,137],[48,138,51,140],[50,21,51,48],[67,11,70,17],[67,18,70,52],[67,53,70,59],[71,11,74,17],[71,18,74,52],[48,5,51,16],[48,17,49,20],[50,17,51,20],[48,21,49,50],[52,124,53,143],[71,53,74,57],[71,58,74,59],[22,131,26,141],[22,142,26,143],[27,131,31,141],[27,142,31,143],[28,78,29,89],[28,90,29,123],[30,78,35,89],[30,90,35,123],[32,131,36,141],[32,142,36,143],[36,78,41,89],[36,90,41,123],[37,131,41,141],[37,142,41,143],[22,124,41,125],[22,126,26,130],[27,126,31,130],[32,126,36,130],[37,126,41,130],[1,78,4,103],[5,97,7,99],[18,69,21,70],[18,58,21,68],[22,69,26,70],[22,58,26,68],[27,58,31,68],[27,69,31,70],[32,69,36,70],[32,58,36,68],[11,78,14,89],[11,90,14,123],[15,78,16,89],[5,78,7,86],[5,88,7,91],[5,92,7,94],[5,95,7,96],[5,100,7,101],[5,102,7,104],[8,102,10,106],[8,107,10,109],[22,78,27,89],[22,90,27,123],[37,58,41,68],[37,69,41,70],[42,67,44,70],[42,58,44,66],[42,51,44,57],[5,51,7,70],[3,51,4,70],[15,51,17,57],[5,24,7,26],[15,58,17,70],[8,51,10,70],[18,51,21,57],[22,53,26,57],[27,53,31,57],[32,53,36,57],[37,53,41,57],[42,30,43,31],[42,32,43,44],[42,45,43,46],[44,21,45,50],[5,27,7,28],[5,32,7,35],[5,29,7,31],[5,5,7,13],[5,15,7,18],[5,19,7,21],[5,22,7,23],[11,124,14,143],[15,124,17,130],[15,131,17,143],[18,124,21,130],[17,78,21,89],[17,90,21,123],[18,131,21,141],[18,142,21,143],[2,73,6,77],[3,124,4,143],[5,124,7,143],[8,124,10,143],[5,105,7,108],[8,110,10,114],[15,90,16,123],[8,78,10,89],[8,90,10,92],[8,93,10,95],[8,96,10,98],[8,99,10,101],[30,5,35,16],[30,17,35,50],[36,5,41,16],[36,17,41,50],[8,17,10,19],[8,20,10,22],[8,23,10,25],[8,26,10,28],[8,29,10,33],[8,34,10,36],[8,37,10,41],[2,0,6,4],[52,51,53,70],[52,5,53,50],[50,49,51,50],[48,68,51,70],[42,3,51,4],[11,51,14,70],[22,51,41,52],[17,5,21,16],[17,17,21,50],[22,5,27,16],[22,17,27,50],[28,5,29,16],[28,17,29,50],[1,5,4,30],[11,5,14,16],[11,17,14,50],[15,17,16,50],[15,5,16,16],[8,5,10,16],[48,51,51,57],[45,51,47,57],[45,58,47,70],[42,17,43,29],[83,18,86,52],[83,53,86,57],[75,11,78,17],[42,140,44,143],[44,90,45,93],[44,94,45,123],[45,124,47,130],[45,131,47,143],[46,90,47,93],[46,94,47,121],[46,122,47,123],[79,84,82,90],[79,91,82,125],[79,126,82,130],[79,131,82,132],[83,11,86,17],[79,18,82,52],[79,53,82,57],[48,141,51,143],[50,90,51,93],[50,94,51,121],[50,122,51,123],[48,90,49,93],[48,94,49,123],[71,91,74,125],[71,126,74,130],[71,131,74,132],[75,84,78,90],[75,91,78,125],[75,126,78,130],[75,131,78,132],[83,131,86,132],[87,84,90,125],[87,126,90,130],[87,131,90,132],[92,84,102,132],[48,64,51,64],[48,58,51,60],[48,61,51,63],[48,65,51,67],[48,131,51,133],[42,76,51,77],[79,58,82,59],[42,124,44,130],[42,131,44,139],[75,58,78,59],[83,58,86,59],[92,11,102,59],[62,73,66,143],[67,84,70,90],[67,91,70,125],[83,84,86,90],[83,91,86,125],[87,53,90,57],[87,58,90,59],[87,11,90,52],[83,126,86,130],[67,126,70,132],[71,84,74,90]]}
[]
[null,null,null,null,null,"給与支払報告書（総括表）",null,null,null,null,null,null,null,null,null,null,null,null,null,null,null,null,null,null,null,null,null,null,null,null,null,null,null,null,null,null,null,null,null,null,null,null,null,null,null,null,null,null,null,null,null,null,null,null,null,null,null,null,null,null,null,null,null,null,null,null,null,null,null,null,null,null,null,null,null,null,null,null,"給与支払報告書（総括表）"]
["○",null,null,null,null,null,null,null,null,null,null,null,null,null,null,null,null,null,null,null,null,null,null,null,null,null,null,null,null,null,null,null,null,null,null,null,null,null,null,null,null,null,null,null,null,null,null,null,null,null,null,null,null,null,null,null,null,null,null,null,null,null,null,null,null,null,null,null,null,null,null,null,null,"○"]
[null,null,null,null,null,null,null,null,null,null,null,null,null,null,null,null,null,null,null,null,null,null,null,null,null,null,null,null,null,null,null,null,null,null,null,null,null,null,null,null,null,null,null,null,null,null,null,null,null,null,null,"指定番号",null,null,null,null,null,null,null,null,null,null,null,null,null,null,null,null,null,null,null,null,null,null,null,null,null,null,null,null,null,null,null,null,null,null,null,null,null,null,null,null,null,null,null,null,null,null,null,null,null,null,null,null,null,null,null,null,null,null,null,null,null,null,null,null,null,null,null,null,null,null,null,null,"指定番号"]
[]
[null,null,null,null,null,"養老町長あて",null,null,null,null,null,null,null,null,null,"令和",null,null,null,null,null,null,"年",null,null,null,null,"月",null,null,null,null,"日提出",null,null,null,null,null,null,null,null,null,null,null,null,null,null,null,null,null,null,null,null,null,null,null,null,null,null,null,null,null,null,null,null,null,null,null,null,null,null,null,null,null,null,null,null,null,"養老町長あて",null,null,null,null,null,null,null,null,null,"令和",null,null,null,{"$f":"+T6","v":0},null,null,"年",null,{"$f":"+Y6","v":0},null,null,"月",null,{"$f":"+AD6","v":0},null,null,"日提出",null,null,null,null,null,null,null,null,null,null,null,null,null,null,null,null,null,null,{"$f":"+AZ6","v":0}]
[]
[]
[null,null,null,null,null,"給与の支払期間",null,null,null,null,null,null,null,null,null,null,null,"令和",null,null,null,null,null,"年",null,null,null,null,null,"月分から",null,null,null,null,null,null,null,"月分まで",null,null,null,null,null,null,null,null,null,null,null,null,null,null,null,null,null,null,null,null,null,null,null,null,null,null,null,null,null,null,null,null,null,null,null,null,null,null,null,null,"給与の支払期間",null,null,null,null,null,null,null,null,null,null,null,"令和",null,null,{"$f":"+U9","v":0},null,null,"年",null,null,{"$f":"+AA9","v":0},null,null,"月分から",null,null,null,null,{"$f":"+AI9","v":0},null,null,"月分まで"]
[]
[]
[null,null,null,null,null,"給与支払者の\n個人番号又は法人番号",null,null,null,null,null,null,null,null,null,null,null,null,null,null,null,null,null,null,null,null,null,null,null,null,null,null,null,null,null,null,null,null,null,null,null,null,null,null,null,null,null,null,null,null,null,null,null,null,null,null,null,null,null,null,null,null,null,null,null,null,null,null,null,null,null,null,null,null,null,null,null,null,"給与支払者の\n個人番号又は法人番号",null,null,null,null,null,null,null,null,null,null,null,{"$f":"+R12","v":0}]
[]
[]
[]
[null,null,null,null,null,"フリガナ",null,null,null,null,null,null,null,null,null,null,null,null,null,null,null,null,null,null,null,null,null,null,null,null,null,null,null,null,null,null,null,null,null,null,null,null,null,null,null,null,null,null,null,null,null,"事業種目",null,null,null,null,null,null,null,null,null,null,null,null,null,null,null,null,null,null,null,null,null,null,null,null,null,null,"フリガナ",null,null,null,null,null,null,null,null,null,null,null,{"$f":"+R16","v":0},null,null,null,null,null,null,null,null,null,null,null,null,null,null,null,null,null,null,null,null,null,null,null,null,null,null,null,null,null,null,null,null,null,"事業種目",null,null,null,null,null,null,{"$f":"+BG16","v":0}]
[]
[null,null,null,null,null,"給与支払者の\n名称又は氏名",null,null,null,null,null,null,null,null,null,null,null,null,null,null,null,null,null,null,null,null,null,null,null,null,null,null,null,null,null,null,null,null,null,null,null,null,null,null,null,null,null,null,null,null,null,null,null,null,null,null,null,null,null,null,null,null,null,null,null,null,null,null,null,null,null,null,null,null,null,null,null,null,"給与支払者の\n名称又は氏名",null,null,null,null,null,null,null,null,null,null,null,{"$f":"+R18","v":0}]
[null,null,null,null,null,null,null,null,null,null,null,null,null,null,null,null,null,null,null,null,null,null,null,null,null,null,null,null,null,null,null,null,null,null,null,null,null,null,null,null,null,null,null,null,null,null,null,null,null,null,null,"受給者\n総人員",null,null,null,null,null,null,null,null,null,null,null,null,null,null,null,null,null,"人",null,null,null,null,null,null,null,null,null,null,null,null,null,null,null,null,null,null,null,null,null,null,null,null,null,null,null,null,null,null,null,null,null,null,null,null,null,null,null,null,null,null,null,null,null,null,null,null,null,null,null,null,null,null,"受給者\n総人員",null,null,null,null,null,null,{"$f":"+BG19","v":0},null,null,null,null,null,null,null,null,null,null,"人"]
[]
[]
[]
[null,null,null,null,null,"所得税の源泉徴収\nをしている事務所\n又は事業所の名称",null,null,null,null,null,null,null,null,null,null,null,null,null,null,null,null,null,null,null,null,null,null,null,null,null,null,null,null,null,null,null,null,null,null,null,null,null,null,null,null,null,null,null,null,null,"報告人員",null,"特別徴収\n対象者",null,null,null,null,null,null,null,null,null,null,null,null,null,null,null,"人",null,null,null,null,null,null,null,null,"所得税の源泉徴収\nをしている事務所\n又は事業所の名称",null,null,null,null,null,null,null,null,null,null,null,{"$f":"+R23","v":0},null,null,null,null,null,null,null,null,null,null,null,null,null,null,null,null,null,null,null,null,null,null,null,null,null,null,null,null,null,null,null,null,null,"報告人員",null,"特別徴収\n対象者",null,null,null,null,{"$f":"+BG23","v":0},null,null,null,null,null,null,null,null,null,null,"人"]
[]
[]
[]
[]
[null,null,null,null,null,null,null,null,null,null,null,null,null,null,null,null,null,null,null,null,null,null,null,null,null,null,null,null,null,null,null,null,null,null,null,null,null,null,null,null,null,null,null,null,null,null,null,null,null,null,null,null,null,"普通徴収\n対象者\n（退職者）",null,null,null,null,null,null,null,null,null,null,null,null,null,null,null,"人",null,null,null,null,null,null,null,null,null,null,null,null,null,null,null,null,null,null,null,null,null,null,null,null,null,null,null,null,null,null,null,null,null,null,null,null,null,null,null,null,null,null,null,null,null,null,null,null,null,null,null,null,null,null,null,null,"普通徴収\n対象者\n（退職者）",null,null,null,null,{"$f":"+BG28","v":0},null,null,null,null,null,null,null,null,null,null,"人"]
[null,null,null,null,null,"フリガナ",null,null,null,null,null,null,null,null,null,null,null,null,null,null,null,null,null,null,null,null,null,null,null,null,null,null,null,null,null,null,null,null,null,null,null,null,null,null,null,null,null,null,null,null,null,null,null,null,null,null,null,null,null,null,null,null,null,null,null,null,null,null,null,null,null,null,null,null,null,null,null,null,"フリガナ",null,null,null,null,null,null,null,null,null,null,null,{"$f":"+R29","v":0}]
[]
[null,null,null,null,null,"同上の所在地",null,null,null,null,null,null,null,null,null,null,null,null,null,null,null,null,null,null,null,null,null,null,null,null,null,null,null,null,null,null,null,null,null,null,null,null,null,null,null,null,null,null,null,null,null,null,null,null,null,null,null,null,null,null,null,null,null,null,null,null,null,null,null,null,null,null,null,null,null,null,null,null,"同上の所在地",null,null,null,null,null,null,null,null,null,null,null,{"$f":"+R31","v":0}]
[]
[null,null,null,null,null,null,null,null,null,null,null,null,null,null,null,null,null,null,null,null,null,null,null,null,null,null,null,null,null,null,null,null,null,null,null,null,null,null,null,null,null,null,null,null,null,null,null,null,null,null,null,null,null,"普通徴収\n対象者\n(退職者を除く)",null,null,null,null,null,null,null,null,null,null,null,null,null,null,null,"人",null,null,null,null,null,null,null,null,null,null,null,null,null,null,null,null,null,null,null,null,null,null,null,null,null,null,null,null,null,null,null,null,null,null,null,null,null,null,null,null,null,null,null,null,null,null,null,null,null,null,null,null,null,null,null,null,"普通徴収\n対象者\n(退職者を除く)",null,null,null,null,{"$f":"+BG33","v":0},null,null,null,null,null,null,null,null,null,null,"人"]
[]
[]
[]
[null,null,null,null,null,"給与支払者が法\n人である場合の\n代表者の氏名",null,null,null,null,null,null,null,null,null,null,null,null,null,null,null,null,null,null,null,null,null,null,null,null,null,null,null,null,null,null,null,null,null,null,null,null,null,null,null,null,null,null,null,null,null,null,null,null,null,null,null,null,null,null,null,null,null,null,null,null,null,null,null,null,null,null,null,null,null,null,null,null,"給与支払者が法\n人である場合の\n代表者の氏名",null,null,null,null,null,null,null,null,null,null,null,{"$f":"+R37","v":0}]
[null,null,null,null,null,null,null,null,null,null,null,null,null,null,null,null,null,null,null,null,null,null,null,null,null,null,null,null,null,null,null,null,null,null,null,null,null,null,null,null,null,null,null,null,null,null,null,null,null,null,null,null,null,"報告人員\nの合計",null,null,null,null,null,null,null,null,null,null,null,null,null,null,null,"人",null,null,null,null,null,null,null,null,null,null,null,null,null,null,null,null,null,null,null,null,null,null,null,null,null,null,null,null,null,null,null,null,null,null,null,null,null,null,null,null,null,null,null,null,null,null,null,null,null,null,null,null,null,null,null,null,"報告人員\nの合計",null,null,null,null,{"$f":"+BG38","v":0},null,null,null,null,null,null,null,null,null,null,"人"]
[]
[]
[]
[]
[null,null,null,"（市町村提出用）",null,"給与支払者が法\n人である場合の\n代表者の氏名",null,null,null,null,null,null,null,null,null,null,null,null,null,null,null,null,null,null,null,null,null,null,null,null,"課",null,null,null,null,null,null,null,null,null,null,null,null,null,null,"係",null,null,null,null,null,"所轄\n税務署名",null,null,null,null,null,null,null,null,null,null,null,null,null,null,null,"税務署",null,null,null,null,null,null,null,null,"（控え用）",null,"給与支払者が法\n人である場合の\n代表者の氏名",null,null,null,null,null,null,null,null,null,null,null,{"$f":"+R43","v":0},null,null,null,null,null,null,null,null,null,null,null,null,"課",null,{"$f":"+AG43","v":0},null,null,null,null,null,null,null,null,null,null,null,null,"係",null,null,null,null,null,"所轄\n税務署名",null,null,null,null,null,null,{"$f":"+BG43","v":0},null,null,null,null,null,null,null,null,"税務署"]
[]
[null,null,null,null,null,null,null,null,null,null,null,null,null,null,null,null,null,"氏名",null,null,null,null,null,null,null,null,null,null,null,null,null,null,null,null,null,null,null,null,null,null,null,null,null,null,null,null,null,null,null,null,null,null,null,null,null,null,null,null,null,null,null,null,null,null,null,null,null,null,null,null,null,null,null,null,null,null,null,null,null,null,null,null,null,null,null,null,null,null,null,null,"氏名",null,null,null,{"$f":"+V45","v":0}]
[null,null,null,null,null,null,null,null,null,null,null,null,null,null,null,null,null,null,null,null,null,null,null,null,null,null,null,null,null,null,null,null,null,null,null,null,null,null,null,null,null,null,null,null,null,null,null,null,null,null,null,"給与の支払方法\n及びその期日",null,null,null,null,null,null,null,null,null,null,null,null,null,null,null,null,null,null,null,null,null,null,null,null,null,null,null,null,null,null,null,null,null,null,null,null,null,null,null,null,null,null,null,null,null,null,null,null,null,null,null,null,null,null,null,null,null,null,null,null,null,null,null,null,null,null,null,null,null,null,null,null,"給与の支払方法\n及びその期日",null,null,null,null,null,null,{"$f":"+BG46","v":0}]
[null,null,null,null,null,null,null,null,null,null,null,null,null,null,null,null,null,"（電話",null,null,null,null,null,null,null,null,null,null,null,null,null,null,null,null,null,null,null,null,null,null,null,null,null,null,null,null,null,null,null,"）",null,null,null,null,null,null,null,null,null,null,null,null,null,null,null,null,null,null,null,null,null,null,null,null,null,null,null,null,null,null,null,null,null,null,null,null,null,null,null,null,"（電話",null,null,null,{"$f":"+V47","v":0},null,null,null,null,null,null,null,null,null,null,null,null,null,null,null,null,null,null,null,null,null,null,null,null,null,null,null,"）"]
[]
[null,null,null,null,null,"関与税理士等の氏名\n及び電話番号",null,null,null,null,null,null,null,null,null,null,null,"氏名",null,null,null,null,null,null,null,null,null,null,null,null,null,null,null,null,null,null,null,null,null,null,null,null,null,null,null,null,null,null,null,null,null,"納入書の\n送付",null,null,null,null,null,null,null,null,null,"必要",null,null,"・",null,null,null,"不要",null,null,null,null,null,null,null,null,null,"関与税理士等の氏名\n及び電話番号",null,null,null,null,null,null,null,null,null,null,null,"氏名",null,null,null,{"$f":"+V49","v":0},null,null,null,null,null,null,null,null,null,null,null,null,null,null,null,null,null,null,null,null,null,null,null,null,null,null,null,null,null,"納入書の\n送付",null,null,null,null,null,null,null,null,null,"必要",null,null,"・",null,null,null,"不要"]
[]
[null,null,null,null,null,null,null,null,null,null,null,null,null,null,null,null,null,"（電話",null,null,null,null,null,null,null,null,null,null,null,null,null,null,null,null,null,null,null,null,null,null,null,null,null,null,null,null,null,null,null,"）",null,null,null,null,null,null,null,null,null,null,null,null,null,null,null,null,null,null,null,null,null,null,null,null,null,null,null,null,null,null,null,null,null,null,null,null,null,null,null,null,"（電話",null,null,null,{"$f":"+V51","v":0},null,null,null,null,null,null,null,null,null,null,null,null,null,null,null,null,null,null,null,null,null,null,null,null,null,null,null,"）"]
[]
[null,null,null,null,null,"　総括表に個人別明細書2枚を添えて提出してください。",null,null,null,null,null,null,null,null,null,null,null,null,null,null,null,null,null,null,null,null,null,null,null,null,null,null,null,null,null,null,null,null,null,null,null,null,null,null,null,null,null,null,null,null,null,"提出期限　　　　　　　1月31日",null,null,null,null,null,null,null,null,null,null,null,null,null,null,null,null,null,null,null,null,null,null,null,null,null,null,"　総括表に個人別明細書2枚を添えて提出してください。",null,null,null,null,null,null,null,null,null,null,null,null,null,null,null,null,null,null,null,null,null,null,null,null,null,null,null,null,null,null,null,null,null,null,null,null,null,null,null,null,null,null,null,null,null,"提出期限　　　　　　　1月31日"]
[]
[]
[]
[]
[]
[]
[]
[]
[]
["普通徴収切替理由書",null,null,null,null,null,null,null,null,null,null,null,null,null,null,null,null,null,null,null,null,null,null,null,null,null,null,null,null,null,null,null,null,null,null,null,null,null,null,null,null,null,null,null,null,null,null,null,null,null,null,null,null,null,null,null,null,null,null,null,null,null,null,null,null,null,null,null,null,null,null,null,null,"普通徴収切替理由書"]
[]
[]
[]
[]
[null,null,null,null,null,null,null,null,null,null,null,"符号",null,null,null,null,null,null,"普通徴収切替理由",null,null,null,null,null,null,null,null,null,null,null,null,null,null,null,null,null,null,null,null,null,null,null,null,null,null,null,null,null,null,null,null,null,null,"人数",null,null,null,null,null,null,null,null,null,null,null,null,null,null,null,null,null,null,null,null,null,null,null,null,null,null,null,null,null,null,"符号",null,null,null,null,null,null,"普通徴収切替理由",null,null,null,null,null,null,null,null,null,null,null,null,null,null,null,null,null,null,null,null,null,null,null,null,null,null,null,null,null,null,null,null,null,null,"人数"]
[]
[]
[]
[null,null,null,null,null,null,null,null,null,null,null,"ａ",null,null,null,null,null,null,"乙欄適用である",null,null,null,null,null,null,null,null,null,null,null,null,null,null,null,null,null,null,null,null,null,null,null,null,null,null,null,null,null,null,null,null,null,null,null,null,null,null,null,"人",null,null,null,null,null,null,null,null,null,null,null,null,null,null,null,null,null,null,null,null,null,null,null,null,null,"ａ",null,null,null,null,null,null,"乙欄適用である",null,null,null,null,null,null,null,null,null,null,null,null,null,null,null,null,null,null,null,null,null,null,null,null,null,null,null,null,null,null,null,null,null,null,{"$f":"+BB72","v":0},null,null,null,null,"人"]
[]
[]
[]
[null,null,null,null,null,null,null,null,null,null,null,"ｂ",null,null,null,null,null,null,"給与が支給されない月がある",null,null,null,null,null,null,null,null,null,null,null,null,null,null,null,null,null,null,null,null,null,null,null,null,null,null,null,null,null,null,null,null,null,null,null,null,null,null,null,"人",null,null,null,null,null,null,null,null,null,null,null,null,null,null,null,null,null,null,null,null,null,null,null,null,null,"ｂ",null,null,null,null,null,null,"給与が支給されない月がある",null,null,null,null,null,null,null,null,null,null,null,null,null,null,null,null,null,null,null,null,null,null,null,null,null,null,null,null,null,null,null,null,null,null,{"$f":"+BB76","v":0},null,null,null,null,"人"]
[]
[]
[]
[null,null,null,null,null,null,null,null,null,null,null,"ｃ",null,null,null,null,null,null,"事業専従者のみ（全従業員が事業専従者の場合に限る）",null,null,null,null,null,null,null,null,null,null,null,null,null,null,null,null,null,null,null,null,null,null,null,null,null,null,null,null,null,null,null,null,null,null,null,null,null,null,null,"人",null,null,null,null,null,null,null,null,null,null,null,null,null,null,null,null,null,null,null,null,null,null,null,null,null,"ｃ",null,null,null,null,null,null,"事業専従者のみ（全従業員が事業専従者の場合に限る）",null,null,null,null,null,null,null,null,null,null,null,null,null,null,null,null,null,null,null,null,null,null,null,null,null,null,null,null,null,null,null,null,null,null,{"$f":"+BB80","v":0},null,null,null,null,"人"]
[]
[]
[]
[null,null,null,null,null,null,null,null,null,null,null,"ｄ",null,null,null,null,null,null,"退職予定者（５月までに退職予定の者）",null,null,null,null,null,null,null,null,null,null,null,null,null,null,null,null,null,null,null,null,null,null,null,null,null,null,null,null,null,null,null,null,null,null,null,null,null,null,null,"人",null,null,null,null,null,null,null,null,null,null,null,null,null,null,null,null,null,null,null,null,null,null,null,null,null,"ｄ",null,null,null,null,null,null,"退職予定者（５月までに退職予定の者）",null,null,null,null,null,null,null,null,null,null,null,null,null,null,null,null,null,null,null,null,null,null,null,null,null,null,null,null,null,null,null,null,null,null,{"$f":"+BB84","v":0},null,null,null,null,"人"]
[]
[]
[]
[null,null,null,null,null,null,null,null,null,null,null,"合計",null,null,null,null,null,null,null,null,null,null,null,null,null,null,null,null,null,null,null,null,null,null,null,null,null,null,null,null,null,null,null,null,null,null,null,null,null,null,null,null,null,null,null,null,null,null,"人",null,null,null,null,null,null,null,null,null,null,null,null,null,null,null,null,null,null,null,null,null,null,null,null,null,"合計",null,null,null,null,null,null,null,null,null,null,null,null,null,null,null,null,null,null,null,null,null,null,null,null,null,null,null,null,null,null,null,null,null,null,null,null,null,null,null,null,null,{"$f":"+BB88","v":0},null,null,null,null,"人"]
[]
[]
[]
[]
[null,null,null,null,null,null,null,null,null,null,null,"※普通徴収とする場合は、給与支払報告書（個人明細書）の摘要欄に該当する符号（a～d）を1つ記入してください。\n※この普通徴収切替理由書の記入がない場合、または、基準に該当していても記入内容に不備がある場合には、原則どおり、特別徴収対象者として課税処理いたします。（記入した仕切り紙をつけていただける場合は普通徴収切替理由書の記入は不要です。）",null,null,null,null,null,null,null,null,null,null,null,null,null,null,null,null,null,null,null,null,null,null,null,null,null,null,null,null,null,null,null,null,null,null,null,null,null,null,null,null,null,null,null,null,null,null,null,null,null,null,null,null,null,null,null,null,null,null,null,null,null,null,null,null,null,null,null,null,null,null,null,null,"※普通徴収とする場合は、給与支払報告書（個人明細書）の摘要欄に該当する符号（a～d）を1つ記入してください。\n※この普通徴収切替理由書の記入がない場合、または、基準に該当していても記入内容に不備がある場合には、原則どおり、特別徴収対象者として課税処理いたします。（記入した仕切り紙をつけていただける場合は普通徴収切替理由書の記入は不要です。）"]